bitfinex/quotes_BTCUSD_20251117
["timestamp","ask_amount","ask_price","bid_price","bid_amount"]
[1763358990593,0.36277943,95411.0,95402.0,0.10510881]
[1763358990721,0.0196737,95410.0,95402.0,0.10510881]
[1763358990926,0.0196737,95409.0,95402.0,0.10510881]
[1763358991201,0.0196737,95408.0,95402.0,0.10510881]
[1763358991407,0.0196737,95407.0,95402.0,0.10510881]
[1763358991688,0.36277943,95411.0,95402.0,0.10510881]
[1763358991830,0.01967144,95410.0,95402.0,0.10510881]
[1763358992040,0.36277943,95411.0,95402.0,0.10510881]
[1763358992041,0.01967144,95409.0,95402.0,0.10510881]
[1763358992243,0.01967144,95408.0,95402.0,0.10510881]
[1763358992523,0.01967144,95407.0,95402.0,0.10510881]
[1763358992794,0.01645679,95407.0,95402.0,0.10510881]
[1763358994067,0.01645679,95407.0,95395.0,0.0117]
[1763358994380,0.01645679,95407.0,95401.0,0.10510881]
[1763358995404,0.08404,95406.0,95401.0,0.10510881]
[1763358995610,0.49108,95406.0,95401.0,0.10510881]
[1763358996184,0.49108,95406.0,95402.0,0.0117]
[1763358996815,0.40704,95406.0,95405.0,0.01656]
[1763358997000,0.08404,95406.0,95405.0,0.01656]
[1763358997344,0.08404,95406.0,95405.0,0.04032]
[1763358997788,0.08404,95406.0,95405.0,0.14032]
[1763358999576,0.08404,95406.0,95405.0,0.14232]
[1763359002284,0.01645526,95419.0,95405.0,0.14232]
[1763359002584,0.01645526,95419.0,95406.0,0.0117]
[1763359003021,0.323,95415.0,95408.0,0.1]
[1763359005169,0.323,95415.0,95408.0,0.101]
[1763359005369,0.08404,95414.0,95408.0,0.101]
[1763359005575,0.00638,95409.0,95408.0,0.102]
[1763359005808,0.00638,95409.0,95408.0,0.002]
[1763359006250,0.35452275,95413.0,95408.0,0.002]
[1763359006251,0.35452275,95413.0,95408.0,0.001]
[1763359006515,0.35452275,95413.0,95401.0,0.11667881]
[1763359006704,0.323,95410.0,95408.0,0.001]
[1763359007036,0.323,95410.0,95401.0,0.11667881]
[1763359008332,0.03152275,95413.0,95401.0,0.11667881]
[1763359008689,0.323,95410.0,95401.0,0.11667881]
[1763359012434,0.323,95410.0,95396.0,0.11157]
[1763359012625,0.01276,95402.0,95396.0,0.10009287]
[1763359012757,0.01276,95402.0,95396.0,9.287e-05]
[1763359015211,0.00638,95402.0,95396.0,0.00109287]
[1763359015572,0.16808,95401.0,95396.0,0.00109287]
[1763359015980,0.08404,95401.0,95396.0,0.00109287]
[1763359016583,0.00638,95402.0,95396.0,9.287e-05]
[1763359017871,0.00638,95402.0,95396.0,0.00109287]
[1763359018071,0.00638,95402.0,95396.0,9.287e-05]
[1763359018486,0.00638,95402.0,95396.0,0.00109287]
[1763359021780,0.00638,95402.0,95396.0,0.02388287]
[1763359023489,0.01645649,95408.0,95396.0,0.02388287]
[1763359023490,0.01645649,95408.0,95403.0,0.01582]
[1763359023679,0.01645649,95408.0,95407.0,0.02739]
[1763359023829,0.00972,95431.0,95407.0,0.02739]
[1763359023830,0.03151945,95426.0,95407.0,0.02739]
[1763359024040,0.01967332,95425.0,95410.0,0.2443659]
[1763359024261,0.01967332,95424.0,95411.0,0.02279]
[1763359024438,0.01967332,95423.0,95411.0,0.02279]
[1763359024636,0.323,95429.0,95411.0,0.02279]
[1763359024637,0.01967332,95422.0,95416.0,0.10510881]
[1763359024869,0.323,95429.0,95416.0,0.10510881]
[1763359025072,0.05119012,95428.0,95416.0,0.10510881]
[1763359025280,0.01967201,95427.0,95416.0,0.10510881]
[1763359025485,0.323,95425.0,95416.0,0.10510881]
[1763359025685,0.01967201,95424.0,95416.0,0.12789881]
[1763359025885,0.01967201,95423.0,95416.0,0.12789881]
[1763359026058,0.01967201,95422.0,95416.0,0.12789881]
[1763359026271,0.323,95425.0,95416.0,0.12789881]
[1763359026466,0.01966998,95424.0,95416.0,0.12789881]
[1763359026729,0.01966998,95423.0,95416.0,0.10510881]
[1763359026905,0.323,95425.0,95417.0,0.02279]
[1763359027108,0.01966995,95424.0,95417.0,0.02279]
[1763359027323,0.01966995,95423.0,95417.0,0.02279]
[1763359027482,0.01645437,95427.0,95417.0,0.02279]
[1763359027679,0.01966833,95426.0,95417.0,0.02279]
[1763359027883,0.01966833,95425.0,95417.0,0.02279]
[1763359028081,0.01966833,95424.0,95417.0,0.02279]
[1763359028425,0.01966833,95423.0,95417.0,0.02279]
[1763359028598,0.01645437,95427.0,95417.0,0.02279]
[1763359028802,0.01966715,95426.0,95417.0,0.02279]
[1763359028984,0.01966715,95425.0,95417.0,0.02279]
[1763359029182,0.01645437,95427.0,95417.0,0.02279]
[1763359029387,0.01645437,95427.0,95426.0,0.024]
[1763359029701,0.01645437,95427.0,95426.0,0.04679]
[1763359030283,0.32524661,95439.0,95426.0,0.04679]
[1763359030484,0.32524661,95439.0,95427.0,0.02279]
[1763359030485,0.01965755,95438.0,95427.0,0.02279]
[1763359030705,0.32568985,95439.0,95427.0,0.02279]
[1763359030903,0.01965755,95438.0,95427.0,0.02279]
[1763359031222,0.32568985,95439.0,95427.0,0.02279]
[1763359031770,0.00268985,95439.0,95431.0,0.10510881]
[1763359034710,0.00972,95438.0,95431.0,0.10510881]
[1763359035555,0.323,95436.0,95431.0,0.10510881]
[1763359038735,0.323,95436.0,95426.0,0.00818]
[1763359038899,0.01597,95432.0,95419.0,0.0113]
[1763359039105,0.323,95429.0,95419.0,0.0113]
[1763359039272,0.323,95429.0,95419.0,0.03531]
[1763359039687,0.323,95429.0,95420.0,0.02401]
[1763359040526,0.08404,95437.0,95420.0,0.02401]
[1763359041822,0.323,95429.0,95420.0,0.02401]
[1763359044722,0.00268985,95439.0,95420.0,0.02401]
[1763359045352,0.323,95429.0,95420.0,0.02401]
[1763359045555,0.08404,95428.0,95420.0,0.02401]
[1763359047394,0.08404,95428.0,95427.0,0.01616]
[1763359047825,0.08404,95428.0,95427.0,0.04017]
[1763359049993,0.34969985,95439.0,95427.0,0.04017]
[1763359050203,0.34969985,95439.0,95431.0,0.10510881]
[1763359050432,0.34969985,95439.0,95432.0,0.0113]
[1763359051431,0.02669985,95439.0,95432.0,0.0113]
[1763359051632,0.02669985,95439.0,95437.0,0.0113]
[1763359053386,0.01966691,95438.0,95437.0,0.0113]
[1763359054760,0.01966691,95438.0,95435.0,0.0113]
[1763359054995,0.01966691,95437.0,95435.0,0.0113]
[1763359055170,0.01967298,95436.0,95435.0,0.03531]
[1763359055372,0.01967298,95436.0,95435.0,0.0113]
[1763359055574,0.49108,95436.0,95435.0,0.02746]
[1763359056420,0.49108,95436.0,95435.0,0.05147]
[1763359056775,0.49108,95436.0,95435.0,0.02746]
[1763359057181,0.51076021,95436.0,95435.0,0.02746]
[1763359058236,0.51076021,95436.0,95435.0,0.0113]
[1763359059095,0.42672021,95436.0,95435.0,0.0113]
[1763359059303,0.34268021,95436.0,95435.0,0.0113]
[1763359059464,0.34268021,95436.0,95435.0,0.05147]
[1763359061115,0.34268021,95436.0,95435.0,0.02746]
[1763359062529,0.34268021,95436.0,95435.0,0.0113]
[1763359065231,0.34268021,95436.0,95435.0,0.02746]
[1763359065538,0.34268021,95436.0,95435.0,0.05147]
[1763359065539,0.51068021,95436.0,95435.0,0.05147]
[1763359066145,0.491,95436.0,95435.0,0.05147]
[1763359067245,0.323,95436.0,95435.0,0.05147]
[1763359068818,0.323,95435.0,95419.0,0.01141]
[1763359068940,0.323,95429.0,95417.0,0.1]
[1763359069136,0.323,95429.0,95419.0,0.11651881]
[1763359069387,0.34704,95429.0,95419.0,0.10510881]
[1763359075455,0.168,95428.0,95419.0,0.10510881]
[1763359076853,0.00972,95427.0,95419.0,0.10510881]
[1763359077557,0.084,95428.0,95426.0,0.02703]
[1763359077854,0.32577354,95440.0,95426.0,0.02703]
[1763359077855,0.0002,95440.0,95427.0,0.01562]
[1763359077987,0.01968177,95438.0,95435.0,0.10510881]
[1763359078192,0.01968177,95437.0,95435.0,0.10510881]
[1763359078426,0.0002,95440.0,95435.0,0.10510881]
[1763359078638,0.01968126,95438.0,95435.0,0.10510881]
[1763359078841,0.0002,95440.0,95435.0,0.10510881]
[1763359078989,0.0196812,95438.0,95435.0,0.10510881]
[1763359079191,0.0002,95440.0,95435.0,0.10510881]
[1763359079451,0.01968084,95438.0,95435.0,0.10510881]
[1763359079670,0.0002,95440.0,95426.0,0.01141]
[1763359079894,0.04372084,95438.0,95426.0,0.01141]
[1763359080100,0.32568985,95439.0,95426.0,0.01141]
[1763359080311,0.01968047,95438.0,95434.0,0.10510881]
[1763359080507,0.32568985,95439.0,95435.0,0.02468]
[1763359080716,0.32568985,95439.0,95438.0,0.01562]
[1763359080924,0.02237032,95439.0,95438.0,0.01562]
[1763359081336,0.02237032,95439.0,95437.0,0.01141]
[1763359081598,0.01968047,95438.0,95437.0,0.01141]
[1763359082883,0.01968047,95438.0,95437.0,0.02703]
[1763359083090,0.00268985,95439.0,95437.0,0.05171]
[1763359083731,0.01967945,95438.0,95437.0,0.05171]
[1763359084168,0.01967945,95438.0,95437.0,0.01141]
[1763359084378,0.01967945,95438.0,95434.0,0.10510881]
[1763359084586,0.00268985,95439.0,95434.0,0.10510881]
[1763359084807,0.01967898,95438.0,95434.0,0.10510881]
[1763359085074,0.00268985,95439.0,95430.0,0.01141]
[1763359085341,0.01967848,95438.0,95434.0,0.10510881]
[1763359085558,0.168,95437.0,95434.0,0.10510881]
[1763359088013,0.0196774,95436.0,95434.0,0.10510881]
[1763359088204,0.168,95437.0,95434.0,0.10510881]
[1763359088415,0.01967734,95436.0,95434.0,0.10510881]
[1763359088617,0.01624,95435.0,95424.0,0.01141]
[1763359092004,0.01624,95435.0,95411.0,0.01141]
[1763359092005,0.02596,95427.0,95413.0,0.01141]
[1763359092351,0.01624,95425.0,95413.0,0.01141]
[1763359092564,0.01624,95420.0,95417.0,0.10510881]
[1763359092773,0.02404,95426.0,95417.0,0.10510881]
[1763359093264,0.00972,95427.0,95419.0,0.001]
[1763359093464,0.00972,95427.0,95417.0,0.10510881]
[1763359093845,0.00972,95427.0,95417.0,0.10610881]
[1763359094933,0.00972,95427.0,95417.0,0.10510881]
[1763359095151,0.323,95429.0,95418.0,0.02468]
[1763359095637,0.323,95429.0,95419.0,0.01141]
[1763359095638,0.17772,95428.0,95419.0,0.01141]
[1763359095843,0.01552,95418.0,95417.0,0.1]
[1763359095991,0.03520088,95418.0,95417.0,0.1]
[1763359096202,0.05873088,95418.0,95411.0,0.1]
[1763359096425,0.00972,95417.0,95408.0,0.1]
[1763359096812,0.03341,95417.0,95408.0,0.1]
[1763359098290,0.02369,95416.0,95408.0,0.1]
[1763359098613,0.02369,95416.0,95408.0,0.101]
[1763359099327,0.02369,95416.0,95408.0,0.1]
[1763359099743,0.02369,95416.0,95408.0,0.101]
[1763359100290,0.01613,95409.0,95408.0,0.101]
[1763359100537,0.03578742,95409.0,95408.0,0.001]
[1763359100711,0.09100328,95409.0,95408.0,0.001]
[1763359101495,0.09100328,95409.0,95388.0,0.1493]
[1763359101699,0.00972,95389.0,95388.0,9.287e-05]
[1763359102921,0.00972,95389.0,95388.0,0.00109287]
[1763359103531,0.00972,95389.0,95388.0,0.00209287]
[1763359105418,0.5008,95389.0,95388.0,0.00209287]
[1763359108785,0.34885,95389.0,95388.0,0.00209287]
[1763359108993,0.37254,95389.0,95388.0,0.00209287]
[1763359109413,0.34885,95389.0,95388.0,0.00209287]
[1763359109850,0.34885,95389.0,95388.0,0.00109287]
[1763359110353,0.37254,95389.0,95388.0,0.00109287]
[1763359110506,0.41241174,95389.0,95388.0,0.00109287]
[1763359110709,0.44394512,95389.0,95388.0,9.287e-05]
[1763359110913,0.46355578,95389.0,95388.0,0.00109287]
[1763359111120,0.42368404,95389.0,95388.0,0.00109287]
[1763359111314,0.42368404,95389.0,95388.0,9.287e-05]
[1763359112518,0.42367271,95389.0,95388.0,9.287e-05]
[1763359112720,0.42467271,95389.0,95388.0,9.287e-05]
[1763359115483,0.59275271,95389.0,95388.0,9.287e-05]
[1763359116601,0.50871271,95389.0,95388.0,9.287e-05]
[1763359117829,0.42467271,95389.0,95388.0,9.287e-05]
[1763359121474,0.42367271,95389.0,95388.0,9.287e-05]
[1763359123438,0.44013392,95389.0,95388.0,9.287e-05]
[1763359125480,0.60829392,95389.0,95388.0,9.287e-05]
[1763359128162,0.44013392,95389.0,95388.0,9.287e-05]
[1763359128383,0.49336744,95389.0,95388.0,9.287e-05]
[1763359128577,0.54416691,95389.0,95388.0,9.287e-05]
[1763359128804,0.51598181,95389.0,95388.0,9.287e-05]
[1763359130093,0.51698181,95389.0,95388.0,9.287e-05]
[1763359130458,0.51598181,95389.0,95388.0,9.287e-05]
[1763359130691,0.51698181,95389.0,95388.0,9.287e-05]
[1763359130862,0.51798181,95389.0,95388.0,9.287e-05]
[1763359132925,0.53522123,95389.0,95388.0,9.287e-05]
[1763359133891,0.51876002,95389.0,95388.0,9.287e-05]
[1763359135271,0.55653385,95389.0,95388.0,9.287e-05]
[1763359135419,0.68692002,95389.0,95388.0,9.287e-05]
[1763359136038,0.6696806,95389.0,95388.0,9.287e-05]
[1763359137391,0.6861434,95389.0,95388.0,9.287e-05]
[1763359141336,0.5179834,95389.0,95388.0,9.287e-05]
[1763359142939,0.5179834,95389.0,95338.0,0.10510881]
[1763359142940,0.36641874,95388.0,95338.0,0.10510881]
[1763359143226,0.02629,95361.0,95360.0,0.00036077]
[1763359143445,0.04588933,95361.0,95360.0,0.00036077]
[1763359143650,0.06954933,95361.0,95360.0,0.00036077]
[1763359145146,0.04588933,95361.0,95360.0,0.00036077]
[1763359145353,0.06954933,95361.0,95360.0,0.00036077]
[1763359145558,0.56070933,95361.0,95360.0,0.00036077]
[1763359146250,0.56070933,95361.0,95360.0,0.00136077]
[1763359147432,0.49309411,95361.0,95360.0,0.00136077]
[1763359147858,0.47662933,95361.0,95360.0,0.00136077]
[1763359148224,0.45296933,95361.0,95360.0,0.00136077]
[1763359148652,0.01959933,95361.0,95360.0,0.00136077]
[1763359148859,0.01959933,95361.0,95360.0,0.04066077]
[1763359149484,0.01959933,95361.0,95360.0,0.01662077]
[1763359150522,0.01959933,95361.0,95360.0,0.00136077]
[1763359151365,0.01959933,95363.0,95360.0,0.00136077]
[1763359151579,0.01959933,95362.0,95361.0,0.10510881]
[1763359151984,0.01959933,95363.0,95361.0,0.10510881]
[1763359152188,0.01959933,95362.0,95361.0,0.10510881]
[1763359152589,0.01959933,95363.0,95361.0,0.10510881]
[1763359152795,0.01959933,95362.0,95361.0,0.10510881]
[1763359153020,0.01646404,95364.0,95361.0,0.10510881]
[1763359153021,0.01959933,95363.0,95361.0,0.10510881]
[1763359153220,0.01959933,95362.0,95361.0,0.10510881]
[1763359153684,0.01959933,95363.0,95361.0,0.12036881]
[1763359153906,0.03616933,95362.0,95360.0,0.00036077]
[1763359154118,0.04477067,95361.0,95360.0,0.00036077]
[1763359154346,0.05469177,95361.0,95360.0,0.00036077]
[1763359154557,0.10102099,95361.0,95360.0,0.00036077]
[1763359154782,0.07835177,95361.0,95360.0,0.00036077]
[1763359154994,0.42402099,95361.0,95360.0,0.00036077]
[1763359155418,0.45235351,95361.0,95360.0,0.00036077]
[1763359155598,0.50810099,95361.0,95360.0,0.00036077]
[1763359156605,0.49949965,95361.0,95360.0,0.00036077]
[1763359156818,0.49426685,95361.0,95360.0,0.00036077]
[1763359158071,0.08718685,95361.0,95360.0,0.00036077]
[1763359159287,0.11551064,95361.0,95360.0,0.00036077]
[1763359159432,0.09284142,95361.0,95360.0,0.00036077]
[1763359160351,0.06451763,95361.0,95360.0,0.00036077]
[1763359161925,0.41018685,95361.0,95360.0,0.00036077]
[1763359163202,0.08718685,95361.0,95360.0,0.00036077]
[1763359164405,0.06451763,95361.0,95360.0,0.00036077]
[1763359164577,0.06872397,95361.0,95360.0,0.00036077]
[1763359165476,0.23688397,95361.0,95360.0,0.00036077]
[1763359165679,0.25952567,95361.0,95360.0,0.00036077]
[1763359169568,0.25923251,95361.0,95360.0,0.00036077]
[1763359170122,0.09107251,95361.0,95360.0,0.00036077]
[1763359170322,0.06840329,95361.0,95360.0,0.00036077]
[1763359171977,0.09107251,95361.0,95360.0,0.00036077]
[1763359174794,0.1075398,95361.0,95360.0,0.00036077]
[1763359174998,0.4305398,95361.0,95360.0,0.00036077]
[1763359175228,0.41407251,95361.0,95360.0,0.00036077]
[1763359175430,0.49815251,95361.0,95360.0,0.00036077]
[1763359175594,0.58223251,95361.0,95360.0,0.00036077]
[1763359178145,0.54018367,95361.0,95330.0,0.0004]
[1763359178352,0.02719,95332.0,95331.0,0.00213288]
[1763359178572,0.04684277,95332.0,95331.0,0.00213288]
[1763359178731,0.43690743,95332.0,95331.0,0.00213288]
[1763359178946,0.45955466,95332.0,95331.0,0.00213288]
[1763359179175,0.51485406,95332.0,95331.0,0.00213288]
[1763359179382,0.51906145,95332.0,95331.0,0.00213288]
[1763359180129,0.55683628,95332.0,95331.0,0.00213288]
[1763359180625,0.51906145,95332.0,95331.0,0.00213288]
[1763359180986,0.52006145,95332.0,95331.0,0.00213288]
[1763359181187,0.52106145,95332.0,95331.0,0.00213288]
[1763359181386,0.55883628,95332.0,95331.0,0.00213288]
[1763359182010,0.52947196,95332.0,95331.0,0.00213288]
[1763359182198,0.49169713,95332.0,95331.0,0.00213288]
[1763359182985,0.44827839,95332.0,95331.0,0.00213288]
[1763359185550,0.61651839,95332.0,95331.0,0.00213288]
[1763359188443,0.64477638,95332.0,95331.0,0.00213288]
[1763359188983,0.56065638,95332.0,95331.0,0.00292886]
[1763359189184,0.53239839,95332.0,95331.0,0.00292886]
[1763359190092,0.44827839,95332.0,95331.0,0.00292886]
[1763359190302,0.43844972,95332.0,95331.0,0.00292886]
[1763359195397,0.52256972,95332.0,95331.0,0.00292886]
[1763359195601,0.42197739,95332.0,95331.0,0.00292886]
[1763359195807,0.18309739,95332.0,95331.0,0.00292886]
[1763359196046,0.48345016,95332.0,95331.0,0.00292886]
[1763359196820,0.39933016,95332.0,95331.0,0.00292886]
[1763359198767,0.37184277,95332.0,95331.0,0.00292886]
[1763359199399,0.35629277,95332.0,95331.0,0.00292886]
[1763359199834,0.35429277,95332.0,95331.0,0.00292886]
[1763359200965,0.34265277,95332.0,95331.0,0.04207886]
[1763359201139,0.01965277,95332.0,95331.0,0.04207886]
[1763359201550,0.02825799,95358.0,95331.0,0.04207886]
[1763359201755,0.01164,95368.0,95343.0,0.10510881]
[1763359201756,0.01962949,95349.0,95343.0,0.10510881]
[1763359201930,0.01962949,95349.0,95331.0,0.00213288]
[1763359201931,0.01164,95332.0,95331.0,0.00213288]
[1763359202987,0.01164,95338.0,95331.0,0.00213288]
[1763359203196,0.323,95340.0,95337.0,0.10510881]
[1763359203400,0.323,95346.0,95331.0,0.04128288]
[1763359203601,0.01164,95339.0,95332.0,0.10510881]
[1763359204332,0.01164,95339.0,95332.0,0.12782881]
[1763359204760,0.323,95349.0,95338.0,0.02885]
[1763359204971,0.01962676,95348.0,95339.0,0.01643]
[1763359205185,0.01962676,95347.0,95339.0,0.03915]
[1763359205393,0.18786676,95346.0,95339.0,0.03915]
[1763359205597,0.01962676,95345.0,95339.0,0.03915]
[1763359205797,0.16824,95346.0,95339.0,0.03915]
[1763359206037,0.01962412,95345.0,95339.0,0.03915]
[1763359206242,0.16824,95346.0,95339.0,0.03915]
[1763359206709,0.01962201,95345.0,95339.0,0.03915]
[1763359206926,0.0275,95340.0,95331.0,0.00213288]
[1763359207139,0.01586,95339.0,95332.0,0.10510881]
[1763359208545,0.01164,95340.0,95332.0,0.10510881]
[1763359209189,0.0281072,95340.0,95332.0,0.10510881]
[1763359209370,0.01164,95340.0,95332.0,0.10510881]
[1763359209831,0.01164,95340.0,95332.0,0.12782881]
[1763359210261,0.01164,95340.0,95333.0,0.02272]
[1763359210470,0.16329619,95342.0,95333.0,0.02272]
[1763359211074,0.48629619,95342.0,95341.0,0.00052147]
[1763359211766,0.323,95342.0,95341.0,0.03967147]
[1763359213189,0.323,95342.0,95341.0,0.04067147]
[1763359215464,0.40712,95342.0,95341.0,0.04067147]
[1763359217124,0.08412,95342.0,95341.0,0.04067147]
[1763359219019,0.01646604,95349.0,95341.0,0.04067147]
[1763359219238,0.01646604,95349.0,95348.0,0.13311881]
[1763359219658,0.01646604,95349.0,95348.0,0.15585881]
[1763359223105,0.33464,95359.0,95348.0,0.15585881]
[1763359223308,0.323,95369.0,95358.0,0.02801]
[1763359223523,0.01963366,95367.0,95363.0,0.10510881]
[1763359223723,0.01963366,95366.0,95363.0,0.10510881]
[1763359224042,0.01963366,95365.0,95364.0,0.02274]
[1763359224219,0.01963615,95365.0,95364.0,0.02274]
[1763359224373,0.01963615,95365.0,95364.0,0.03829]
[1763359224579,0.01963615,95365.0,95364.0,0.05075]
[1763359224809,0.01971041,95365.0,95364.0,0.05075]
[1763359225373,0.42679041,95365.0,95364.0,0.05075]
[1763359225585,0.51087041,95365.0,95364.0,0.05075]
[1763359227231,0.42679041,95365.0,95364.0,0.05075]
[1763359227436,0.34271041,95365.0,95364.0,0.05075]
[1763359235435,0.51087041,95365.0,95364.0,0.05075]
[1763359236648,0.34271041,95365.0,95364.0,0.05075]
[1763359237107,0.01971041,95365.0,95364.0,0.05075]
[1763359237302,0.01972298,95365.0,95364.0,0.05075]
[1763359237509,7.426e-05,95365.0,95364.0,0.05075]
[1763359242217,7.426e-05,95365.0,95364.0,0.05175]
[1763359242950,7.426e-05,95365.0,95364.0,0.05275]
[1763359243369,7.426e-05,95365.0,95364.0,0.05175]
[1763359243584,7.426e-05,95365.0,95364.0,0.05075]
[1763359245670,0.08415426,95365.0,95364.0,0.05075]
[1763359245854,0.08415426,95365.0,95364.0,0.20005]
[1763359250146,7.426e-05,95365.0,95364.0,0.20005]
[1763359251631,7.426e-05,95365.0,95364.0,0.05075]
[1763359255493,0.08415426,95365.0,95364.0,0.05075]
[1763359260521,7.426e-05,95365.0,95364.0,0.05075]
[1763359265647,0.08415426,95365.0,95364.0,0.05075]
[1763359266149,0.08415426,95365.0,95364.0,0.02801]
[1763359266348,0.08415426,95365.0,95351.0,0.00024703]
[1763359266349,0.323,95364.0,95351.0,0.01201703]
[1763359266589,0.00873,95352.0,95351.0,0.00024703]
[1763359268951,0.04835,95352.0,95351.0,0.00024703]
[1763359269770,0.06802419,95352.0,95351.0,0.00024703]
[1763359270201,0.08448959,95352.0,95351.0,0.00024703]
[1763359270374,0.0648154,95352.0,95351.0,0.00024703]
[1763359270941,0.0658154,95352.0,95351.0,0.00024703]
[1763359271910,0.0174654,95352.0,95351.0,0.00024703]
[1763359272789,0.0164654,95352.0,95351.0,0.00024703]
[1763359272990,0.0174654,95352.0,95351.0,0.00024703]
[1763359273192,0.0570854,95352.0,95351.0,0.00024703]
[1763359275441,0.5482454,95352.0,95351.0,0.00024703]
[1763359277164,0.5249654,95352.0,95351.0,0.00024703]
[1763359277598,0.5479254,95352.0,95351.0,0.00024703]
[1763359280306,0.3797654,95352.0,95350.0,1.98618985]
[1763359280568,0.36125,95351.0,95350.0,1.98618985]
[1763359281625,0.03825,95351.0,95350.0,1.98618985]
[1763359281842,0.01529,95351.0,95350.0,1.98618985]
[1763359282264,0.01629,95351.0,95350.0,1.98618985]
[1763359282468,0.03925,95351.0,95350.0,1.98618985]
[1763359285580,0.20741,95351.0,95350.0,1.98618985]
[1763359287427,0.12333,95351.0,95350.0,1.98618985]
[1763359287731,0.03925,95351.0,95350.0,1.98618985]
[1763359287983,0.05888398,95351.0,95350.0,1.98618985]
[1763359288386,0.0904293,95351.0,95350.0,1.98618985]
[1763359290361,0.05888398,95351.0,95350.0,1.98618985]
[1763359291335,0.03592398,95351.0,95350.0,1.98618985]
[1763359291535,0.05888398,95351.0,95350.0,1.98618985]
[1763359291739,0.39835,95351.0,95350.0,1.98618985]
[1763359293399,0.37871602,95351.0,95350.0,1.98618985]
[1763359293751,0.39837214,95351.0,95350.0,1.98618985]
[1763359295488,0.56653214,95351.0,95350.0,1.98618985]
[1763359297390,0.50513765,95351.0,95350.0,1.98618985]
[1763359298873,0.03712214,95351.0,95350.0,1.98618985]
[1763359299158,0.03712214,95351.0,95350.0,2.00120985]
[1763359299534,0.03712214,95351.0,95350.0,2.02502985]
[1763359300311,0.03612214,95351.0,95350.0,2.02502985]
[1763359302207,0.03612214,95351.0,95350.0,2.00120985]
[1763359304515,0.03612214,95351.0,95350.0,1.98618985]
[1763359305142,0.01646602,95351.0,95350.0,1.98618985]
[1763359305362,0.01646602,95351.0,95350.0,2.02506985]
[1763359305568,0.50762602,95351.0,95350.0,2.02506985]
[1763359305988,0.42354602,95351.0,95350.0,2.02506985]
[1763359306410,0.40708,95351.0,95350.0,2.02506985]
[1763359308161,0.323,95351.0,95350.0,2.02506985]
[1763359312427,0.323,95351.0,95350.0,2.12506985]
[1763359313046,7.426e-05,95365.0,95350.0,2.12506985]
[1763359313296,7.426e-05,95365.0,95364.0,0.11557881]
[1763359313783,0.01974246,95365.0,95364.0,0.11557881]
[1763359314605,0.01974246,95365.0,95364.0,0.13175881]
[1763359314807,7.426e-05,95365.0,95364.0,0.15445881]
[1763359315470,0.08415426,95365.0,95364.0,0.15445881]
[1763359315860,7.426e-05,95365.0,95364.0,0.15445881]
[1763359316280,7.426e-05,95365.0,95364.0,0.15545881]
[1763359316652,7.426e-05,95365.0,95364.0,0.15645881]
[1763359322510,7.426e-05,95365.0,95364.0,0.18798736]
[1763359325509,0.08415426,95365.0,95364.0,0.18798736]
[1763359333268,0.08415426,95365.0,95364.0,0.15645881]
[1763359341258,7.426e-05,95365.0,95364.0,0.15645881]
[1763359343433,7.426e-05,95365.0,95364.0,0.29987755]
[1763359343853,7.426e-05,95365.0,95364.0,0.29887755]
[1763359344053,7.426e-05,95365.0,95364.0,0.32155211]
[1763359344259,7.426e-05,95365.0,95364.0,0.42155211]
[1763359344487,7.426e-05,95365.0,95364.0,0.42355211]
[1763359345347,7.426e-05,95365.0,95364.0,0.42255211]
[1763359345525,0.08415426,95365.0,95364.0,0.42255211]
[1763359345739,0.01646019,95383.0,95382.0,0.10510881]
[1763359345944,0.01646019,95383.0,95382.0,0.12046881]
[1763359345945,0.12023007,95383.0,95382.0,0.12046881]
[1763359346143,0.01646019,95383.0,95382.0,0.14498881]
[1763359346413,0.01646019,95383.0,95382.0,0.24498881]
[1763359346617,0.02267822,95408.0,95382.0,0.24498881]
[1763359346818,0.01968623,95407.0,95402.0,0.10510881]
[1763359347010,0.01968623,95406.0,95402.0,0.10510881]
[1763359347217,0.01968623,95405.0,95402.0,0.10510881]
[1763359347429,0.01968623,95404.0,95402.0,0.10510881]
[1763359347604,0.01968623,95403.0,95402.0,0.10510881]
[1763359350464,0.01968623,95403.0,95402.0,0.14498881]
[1763359354088,0.00013286,95408.0,95402.0,0.14498881]
[1763359354288,0.00013286,95408.0,95407.0,0.02751]
[1763359354667,0.00013286,95408.0,95407.0,0.05203]
[1763359355070,0.00013286,95408.0,95407.0,0.15203]
[1763359355477,0.08417286,95408.0,95407.0,0.15203]
[1763359356255,0.08417286,95408.0,95407.0,0.15303]
[1763359356585,0.08417286,95408.0,95407.0,0.15403]
[1763359357150,0.08417286,95408.0,95407.0,0.18554467]
[1763359359523,0.08417286,95408.0,95407.0,0.15403]
[1763359377202,0.08404,95408.0,95407.0,0.15403]
[1763359377725,0.08430797,95421.0,95407.0,0.19744874]
[1763359378032,0.08404,95408.0,95407.0,0.15756874]
[1763359378216,0.08430797,95421.0,95420.0,0.10510881]
[1763359378432,0.10395163,95421.0,95420.0,0.13287881]
[1763359378621,0.10395163,95421.0,95420.0,0.15719881]
[1763359379145,0.08430797,95421.0,95420.0,0.15719881]
[1763359379560,0.10395651,95421.0,95420.0,0.15719881]
[1763359379832,0.01991651,95421.0,95420.0,0.15719881]
[1763359380029,0.01991651,95421.0,95420.0,0.15819881]
[1763359380681,0.00026797,95421.0,95420.0,0.15819881]
[1763359381498,0.01992778,95421.0,95420.0,0.15819881]
[1763359385603,0.10396778,95421.0,95420.0,0.15819881]
[1763359386009,0.10396778,95421.0,95420.0,0.001]
[1763359386209,0.38202778,95421.0,95420.0,0.001]
[1763359386514,0.40470758,95421.0,95420.0,0.001]
[1763359386837,0.41455154,95421.0,95420.0,0.001]
[1763359387042,0.323,95420.0,95383.0,0.02432]
[1763359387269,0.323,95397.0,95388.0,0.01263286]
[1763359387462,0.01968938,95396.0,95388.0,0.01263286]
[1763359387624,0.01968938,95395.0,95388.0,0.01263286]
[1763359387826,0.01968938,95394.0,95388.0,0.01263286]
[1763359388062,0.01968938,95393.0,95388.0,0.01263286]
[1763359388279,0.01968938,95392.0,95388.0,0.01263286]
[1763359388567,0.01968938,95391.0,95389.0,0.02432]
[1763359388863,0.323,95397.0,95389.0,0.02432]
[1763359389094,0.0196604,95396.0,95389.0,0.02432]
[1763359389277,0.0196604,95395.0,95389.0,0.02432]
[1763359389469,0.0196604,95394.0,95389.0,0.02432]
[1763359389682,0.0196604,95393.0,95389.0,0.02432]
[1763359389831,0.323,95397.0,95389.0,0.02432]
[1763359390030,0.01965233,95396.0,95392.0,0.01527]